bitfinex-derivatives/quotes_SOLF0:USTF0_20240910
["timestamp","ask_amount","ask_price","bid_price","bid_amount"]
[1725997969743,21.21773142,136.59,136.54,3.6616]
[1725997970455,17.58,136.59,136.54,3.6616]
[1725997970960,21.33090692,136.59,136.54,3.6616]
[1725997971454,17.58,136.59,136.55,3.6612]
[1725997972159,17.58,136.59,136.54,3.6616]
[1725997974163,11.26,136.58,136.54,3.6616]
[1725997974957,11.26,136.58,136.52,11.26]
[1725997975551,11.26,136.58,136.55,3.6613]
[1725997976058,16.28042274,136.6,136.53,11.26]
[1725997976659,16.28042274,136.6,136.55,3.6614]
[1725997977558,11.26,136.58,136.55,3.6614]
[1725997980266,12.5742,136.6,136.53,11.26]
[1725997980955,12.5742,136.6,136.57,3.6607]
[1725997981267,12.5742,136.6,136.53,11.26]
[1725997983175,12.5742,136.6,136.56,3.6609]
[1725997983670,12.5742,136.6,136.53,11.26]
[1725997984471,12.5742,136.6,136.55,3.6612]
[1725997984670,12.5742,136.6,136.53,11.26]
[1725997985072,12.5742,136.6,136.56,3.661]
[1725997986874,11.26,136.58,136.49,4.99167069]
[1725997987075,11.26,136.57,136.51,11.26]
[1725997987377,11.26,136.57,136.53,3.6617]
[1725997987972,11.26,136.57,136.54,3.6617]
[1725997990675,11.26,136.55,136.49,16.25167069]
[1725997991064,11.26,136.55,136.51,3.6623]
[1725997991679,11.26,136.53,136.5,3.6627]
[1725997992670,11.26,136.52,136.49,3.6629]
[1725997992871,11.26,136.52,136.46,4.98876885]
[1725997993072,11.26,136.52,136.46,1.3201]
[1725997993375,11.26,136.52,136.48,3.6631]
[1725997993571,11.26,136.52,136.46,5.03712275]
[1725997993771,11.26,136.52,136.48,3.6632]
[1725997995780,11.26,136.52,136.49,3.663]
[1725997996187,11.26,136.52,136.48,3.6631]
[1725997998180,11.26,136.52,136.46,1.3201]
[1725997998388,11.26,136.51,136.46,1.3201]
[1725997998786,11.26,136.51,136.47,3.6635]
[1725997999185,14.95402411,136.51,136.47,3.6635]
[1725998000187,11.26,136.51,136.47,3.6635]
[1725998000788,14.89796522,136.51,136.47,3.6635]
[1725998001184,11.26,136.51,136.47,3.6635]
[1725998001686,14.94339857,136.51,136.46,3.6637]
[1725998001885,11.26,136.49,136.43,1.3391]
[1725998002085,11.26,136.49,136.43,4.9635085]
[1725998002287,11.26,136.47,136.41,1.3042]
[1725998002790,11.26,136.46,136.41,3.6651]
[1725998002990,11.26,136.46,136.4,11.26]
[1725998003185,11.26,136.46,136.37,3.9064]
[1725998003383,11.26,136.43,136.37,12.5991]
[1725998003893,11.26,136.43,136.39,3.6655]
[1725998004788,1.3302,136.45,136.4,3.6652]
[1725998004995,12.5902,136.45,136.37,1.3391]
[1725998005187,12.5902,136.45,136.37,12.5991]
[1725998005492,12.5902,136.45,136.4,3.6653]
[1725998006690,12.5902,136.45,136.41,3.6651]
[1725998007085,12.5902,136.45,136.42,3.6648]
[1725998007385,12.5902,136.45,136.37,12.5991]
[1725998007892,12.5902,136.45,136.42,3.6647]
[1725998008192,11.26,136.48,136.4,11.26]
[1725998009086,11.26,136.48,136.46,3.6638]
[1725998009485,11.26,136.48,136.4,11.26]
[1725998009687,11.26,136.48,136.45,3.664]
[1725998009889,11.26,136.48,136.4,11.26]
[1725998010188,11.26,136.48,136.38,2.5857]
[1725998010189,4.91424798,136.5,136.42,11.26]
[1725998010492,12.5782,136.5,136.43,11.26]
[1725998010684,12.5782,136.5,136.44,3.63636653]
[1725998011297,12.5782,136.5,136.48,3.6631]
[1725998013091,12.5782,136.5,136.49,3.663]
[1725998013994,12.5782,136.5,136.48,3.6632]
[1725998014695,12.5782,136.5,136.45,11.26]
[1725998015292,12.5782,136.5,136.48,3.6631]
[1725998015787,1.2758,136.57,136.45,11.26]
[1725998015988,11.26,136.51,136.45,11.26]
[1725998016492,11.26,136.51,136.49,3.6628]
[1725998020699,11.26,136.51,136.45,12.637]
[1725998020700,11.26,136.51,136.5,3.6628]
[1725998021201,11.26,136.51,136.49,3.6629]
[1725998022602,11.26,136.51,136.5,3.6628]
[1725998022992,11.26,136.51,136.45,13.9631]
[1725998023200,11.26,136.51,136.48,3.6632]
[1725998023399,11.26,136.51,136.45,13.9631]
[1725998024695,11.26,136.51,136.45,12.637]
[1725998024900,11.26,136.49,136.44,1.3832]
[1725998025204,11.26,136.48,136.45,3.664]
[1725998025603,11.26,136.48,136.44,1.3832]
[1725998025804,11.26,136.48,136.41,11.26]
[1725998026201,11.26,136.47,136.43,3.6646]
[1725998026408,11.26,136.45,136.39,12.6596]
[1725998026615,11.26,136.45,136.39,1.3996]
[1725998027108,11.26,136.45,136.41,3.665]
[1725998028808,11.26,136.42,136.39,1.3996]
[1725998029110,11.26,136.42,136.38,1.2735]
[1725998029311,11.26,136.42,136.33,1.314]
[1725998029507,11.26,136.42,136.36,11.26]
[1725998030207,11.26,136.42,136.38,3.6658]
[1725998030408,11.26,136.42,136.36,11.26]
[1725998030611,11.26,136.42,136.34,2.6971]
[1725998030806,11.26,136.42,136.38,3.666]
[1725998031202,11.26,136.42,136.36,11.26]
[1725998031912,11.26,136.44,136.37,11.26]
[1725998032402,11.26,136.44,136.39,3.6655]
[1725998032603,11.26,136.44,136.37,11.26]
[1725998032801,11.26,136.44,136.4,3.6653]
[1725998034811,11.26,136.44,136.41,3.6651]
[1725998035112,11.26,136.42,136.34,2.6971]
[1725998035305,11.26,136.42,136.37,3.6661]
[1725998035610,11.26,136.4,136.34,13.9571]
[1725998036598,11.26,136.4,136.37,3.6661]
[1725998038112,11.26,136.38,136.35,3.6667]
[1725998038702,11.26,136.38,136.36,3.6665]
[1725998038906,11.26,136.38,136.33,1.314]
[1725998040117,11.26,136.38,136.36,3.6665]
[1725998040313,11.26,136.38,136.33,1.314]
[1725998041815,11.26,136.4,136.33,13.8593]
[1725998042210,11.26,136.4,136.37,3.6661]
[1725998042419,12.5694,136.41,136.35,11.26]
[1725998042815,1.3094,136.41,136.35,11.26]
[1725998043015,12.5694,136.41,136.35,11.26]
[1725998043519,12.5694,136.41,136.37,3.6661]
[1725998044512,12.5694,136.41,136.33,15.1805]
[1725998044717,11.26,136.41,136.35,11.26]
[1725998045116,11.26,136.41,136.39,3.6657]
[1725998047622,11.26,136.41,136.38,3.6659]
[1725998048213,11.26,136.41,136.34,11.26]
[1725998048615,11.26,136.41,136.38,3.6659]
[1725998049216,11.26,136.41,136.39,3.6657]
[1725998049715,11.26,136.42,136.39,3.6657]
[1725998050110,0.5676,136.47,136.38,3.6659]
[1725998050311,0.5676,136.47,136.39,3.68783713]
[1725998050630,1.3181,136.48,136.41,11.26]
[1725998050816,11.26,136.48,136.41,11.26]
[1725998051120,11.26,136.49,136.43,11.26]
[1725998051520,11.26,136.5,136.44,11.26]
[1725998051727,11.26,136.52,136.45,12.5412]
[1725998052720,11.26,136.51,136.47,3.6635]
[1725998054323,17.58,136.52,136.47,3.6635]
[1725998054619,22.68726532,136.54,136.48,3.6633]
[1725998054818,22.68726532,136.54,136.45,1.2812]
[1725998055223,22.68726532,136.54,136.48,3.6632]
[1725998055417,18.9567,136.54,136.48,3.6632]
[1725998055824,18.9567,136.54,136.46,17.58]
[1725998056034,1.3767,136.54,136.46,18.8716]
[1725998056519,1.3767,136.54,136.5,3.6627]
[1725998056719,17.58,136.57,136.49,3.58593671]
[1725998056932,17.58,136.57,136.51,3.6624]
[1725998059933,17.58,136.54,136.46,1.2916]
[1725998060126,21.24700831,136.54,136.46,1.2916]
[1725998061032,17.58,136.54,136.48,3.6631]
[1725998061331,17.58,136.54,136.46,1.2916]
[1725998061531,17.58,136.57,136.46,18.8716]
[1725998062530,17.58,136.57,136.48,17.58]
[1725998062729,17.58,136.57,136.49,3.64868976]
[1725998063131,17.58,136.57,136.51,3.6623]
[1725998063427,1.3793,136.58,136.51,3.6623]
[1725998063629,1.3793,136.58,136.49,3.64868976]
[1725998065228,1.3793,136.58,136.52,3.6622]
[1725998065420,1.3793,136.58,136.49,3.64868976]
[1725998065624,1.3793,136.58,136.48,17.58]
[1725998066027,1.3793,136.58,136.49,3.61774618]
[1725998066227,1.3793,136.58,136.48,17.58]
[1725998066632,1.3793,136.58,136.49,3.62214243]
[1725998067226,1.3793,136.58,136.51,3.6624]
[1725998069633,17.58,136.55,136.46,1.2916]
[1725998069834,3.60199908,136.54,136.46,1.2916]
[1725998070034,1.3793,136.58,136.46,1.2916]
[1725998070035,17.58,136.56,136.5,3.6626]
[1725998072242,17.58,136.56,136.51,3.6625]
[1725998072936,17.58,136.56,136.52,3.6622]
[1725998076142,11.26,136.56,136.53,3.6619]
[1725998078245,11.26,136.56,136.52,3.6621]
[1725998078549,11.26,136.56,136.51,11.26]
[1725998078742,11.26,136.56,136.53,3.6619]
[1725998079749,11.26,136.56,136.52,3.6621]
[1725998080446,11.26,136.55,136.48,14.84724291]
[1725998080640,11.26,136.55,136.48,11.26]
[1725998080842,11.26,136.56,136.49,14.90219454]
[1725998081046,11.26,136.56,136.49,11.26]
[1725998081236,11.26,136.56,136.51,3.6624]
[1725998081848,11.26,136.56,136.51,3.6625]
[1725998082947,1.3793,136.58,136.52,11.26]
[1725998083638,1.3793,136.58,136.54,3.6615]
[1725998084140,1.3793,136.58,136.53,3.6619]
[1725998084745,1.3793,136.58,136.54,3.6614]
[1725998084949,1.3793,136.58,136.54,14.9214]
[1725998085553,1.3793,136.58,136.55,3.6614]
[1725998088251,1.3793,136.58,136.54,3.6616]
[1725998088448,1.3793,136.58,136.52,11.26]
[1725998088846,1.3793,136.58,136.53,3.6618]
[1725998089246,1.3793,136.58,136.52,11.26]
[1725998089448,11.26,136.56,136.52,3.6621]
[1725998089752,11.26,136.56,136.51,12.5564]
[1725998090047,11.26,136.56,136.51,16.2188]
[1725998090252,1.3793,136.58,136.52,11.26]
[1725998090449,12.6393,136.58,136.52,11.26]
[1725998090652,12.6393,136.58,136.53,3.6618]
[1725998091350,12.6393,136.58,136.54,3.6617]
[1725998093141,12.6393,136.58,136.53,3.6619]
[1725998094245,12.6393,136.58,136.52,3.6621]
[1725998094449,11.26,136.56,136.51,12.5564]
[1725998095358,12.6393,136.58,136.52,11.26]
[1725998095558,12.6393,136.58,136.5,1.3093]
[1725998095744,12.6393,136.58,136.53,3.6618]
[1725998096851,151.81933495,136.61,136.51,12.5889]
[1725998097052,11.26,136.58,136.51,12.5889]
[1725998097346,11.26,136.58,136.52,11.26]
[1725998098249,1.323,136.6,136.52,11.26]
[1725998098457,12.583,136.6,136.52,11.26]
[1725998098757,12.583,136.6,136.55,3.6613]
[1725998099356,12.583,136.6,136.56,3.6609]
[1725998100356,1.2755,136.64,136.57,11.26]
[1725998100555,11.26,136.64,136.57,11.26]
[1725998100751,14.83389709,136.64,136.57,11.26]
[1725998100952,11.26,136.64,136.6,3.6599]
[1725998101354,14.85733969,136.64,136.6,3.6599]
[1725998101761,11.26,136.62,136.58,5.0498]
[1725998101960,11.26,136.62,136.55,11.26]
[1725998102163,11.26,136.62,136.56,14.97235493]
[1725998102460,11.26,136.62,136.57,3.6608]
[1725998102652,11.26,136.62,136.55,11.26]
[1725998103169,11.26,136.61,136.52,1.3894]
[1725998103357,11.26,136.59,136.53,11.26]
[1725998103553,11.26,136.59,136.55,3.6613]
[1725998103755,11.26,136.59,136.52,12.6494]
[1725998104363,11.26,136.59,136.54,3.6615]
[1725998105355,11.26,136.59,136.52,12.6494]
[1725998105563,11.26,136.59,136.54,11.26]
[1725998106161,11.26,136.59,136.55,3.6613]
[1725998106364,11.26,136.59,136.54,11.26]
[1725998106558,11.26,136.59,136.56,3.661]
[1725998107464,11.26,136.57,136.52,1.3894]
[1725998107854,11.26,136.57,136.54,3.6615]
[1725998108264,11.26,136.58,136.54,3.6615]
[1725998108867,11.26,136.58,136.55,3.6614]
[1725998109467,1.3988,136.59,136.55,3.6614]
[1725998109766,1.3988,136.59,136.56,3.6611]
[1725998109972,11.26,136.61,136.54,11.26]
[1725998110166,11.26,136.61,136.58,3.6606]
[1725998110672,11.26,136.62,136.59,3.6602]
[1725998111873,14.95652798,136.64,136.59,3.6602]
[1725998112166,11.26,136.64,136.6,3.66]
[1725998113474,11.26,136.64,136.59,3.6602]
[1725998113973,11.26,136.64,136.58,11.26]
[1725998114274,11.26,136.64,136.6,3.6599]
[1725998114671,11.26,136.64,136.61,3.6598]
[1725998115376,11.26,136.64,136.6,3.66]
[1725998115674,11.26,136.64,136.57,2.7614]
[1725998115873,11.26,136.64,136.59,3.6602]
[1725998116569,11.26,136.64,136.57,14.0214]
[1725998118578,2.6828,136.69,136.6,11.26]
[1725998118881,2.6828,136.69,136.62,11.26]
[1725998118882,12.6677,136.69,136.62,11.26]
[1725998119268,12.6677,136.69,136.58,1.3151]
[1725998119269,12.6677,136.69,136.63,11.26]
[1725998119471,11.26,136.7,136.64,11.26]
[1725998119684,162.96273403,136.71,136.65,3.67787053]
[1725998119983,162.96273403,136.71,136.66,11.26]
[1725998120274,151.70273403,136.71,136.66,11.26]
[1725998120467,14.84523725,136.7,136.58,1.3151]
[1725998120674,11.26,136.68,136.58,1.3151]
[1725998120876,11.26,136.68,136.61,11.26]
[1725998121180,11.26,136.68,136.63,3.6591]
[1725998121675,11.26,136.68,136.58,1.3151]
[1725998121977,11.26,136.7,136.64,3.659]
[1725998122181,155.39133372,136.71,136.64,3.659]
[1725998122475,151.70273403,136.71,136.66,3.6585]
[1725998122876,151.70273403,136.71,136.64,1.3846]
[1725998123675,151.70273403,136.71,136.64,5.0434]
[1725998124272,151.70273403,136.71,136.65,3.6587]
[1725998124981,151.70273403,136.71,136.66,3.6585]
[1725998125374,1.2759,136.76,136.66,17.56]
[1725998125587,2.5663,136.76,136.66,17.56]
[1725998125881,1.2904,136.76,136.68,17.56]
[1725998126480,1.2904,136.76,136.71,3.657]
[1725998127282,1.2904,136.76,136.7,3.6573]
[1725998129080,1.2904,136.76,136.69,5.0553]
[1725998129284,18.8504,136.76,136.69,3.6576]
[1725998129985,18.8504,136.76,136.68,3.6578]
[1725998130286,18.8504,136.76,136.66,17.56]
[1725998130481,18.8504,136.76,136.69,3.6577]
[1725998130680,18.8504,136.76,136.66,17.56]
[1725998130984,18.8504,136.76,136.65,1.2841]
[1725998131283,17.56,136.74,136.64,18.8678]
[1725998131480,17.56,136.74,136.66,3.6583]
[1725998131684,17.56,136.74,136.64,18.8678]
[1725998132281,17.56,136.74,136.67,3.6582]
[1725998132481,17.56,136.74,136.64,18.8678]
[1725998132685,17.56,136.74,136.66,3.6584]
[1725998133077,17.56,136.71,136.61,1.3722]
[1725998133278,17.56,136.69,136.59,17.56]
[1725998133484,1.3972,136.7,136.61,17.56]
[1725998133680,1.3972,136.7,136.62,1.2999]
[1725998134784,1.3972,136.7,136.63,18.9528]
[1725998135185,17.56,136.74,136.63,22.69043952]
[1725998135382,17.56,136.74,136.63,24.08703952]
[1725998135586,17.56,136.74,136.66,3.6583]
[1725998135984,17.56,136.74,136.67,3.6582]
[1725998136893,17.56,136.74,136.63,24.08703952]
[1725998137185,17.56,136.71,136.63,1.3928]
[1725998137491,3.59637555,136.7,136.64,3.6588]
[1725998137893,3.59637555,136.7,136.65,3.6587]
[1725998138191,17.56,136.71,136.65,3.6587]
[1725998138393,21.13954099,136.71,136.66,3.6584]
[1725998139185,17.56,136.71,136.66,3.6584]
[1725998139391,21.26763007,136.71,136.66,3.6584]
[1725998140280,17.56,136.71,136.66,3.6584]
[1725998140487,17.56,136.73,136.67,3.6582]
[1725998141684,18.9568,136.75,136.68,3.6579]
[1725998141987,18.9568,136.75,136.66,17.56]
[1725998142187,18.9568,136.75,136.69,3.6575]
[1725998143391,225.0,136.83,136.68,17.56]
[1725998143693,17.56,136.78,136.69,1.317]
[1725998143891,3.75081439,136.77,136.71,3.6569]
[1725998144097,17.56,136.78,136.69,1.317]
[1725998144292,17.56,136.77,136.69,1.317]
[1725998144497,21.13529635,136.77,136.69,1.317]
[1725998144894,17.56,136.74,136.63,22.62639497]
[1725998145104,1.3845,136.73,136.63,23.94339497]
[1725998145395,3.57785745,136.72,136.63,23.94339497]
[1725998145591,3.57785745,136.72,136.66,3.6583]
[1725998145983,17.56,136.72,136.63,23.94339497]
[1725998146186,17.56,136.72,136.65,3.6586]
[1725998146386,17.56,136.72,136.63,23.94339497]
[1725998146594,3.59761451,136.71,136.63,23.94339497]
[1725998146898,3.59761451,136.71,136.65,3.6586]
[1725998149186,3.59761451,136.71,136.63,23.94339497]
[1725998149393,17.56,136.7,136.63,2.7098]
[1725998151098,17.56,136.72,136.63,2.7098]
[1725998151500,17.56,136.72,136.63,6.3059701]
[1725998151696,17.56,136.72,136.63,2.7098]
[1725998154198,11.24,136.7,136.64,3.659]
[1725998155599,11.24,136.7,136.65,3.6587]
[1725998156004,11.24,136.7,136.63,13.9498]
[1725998156804,11.24,136.7,136.65,3.6587]
[1725998158708,11.24,136.68,136.63,2.7098]
[1725998159103,11.24,136.68,136.64,3.6589]
[1725998159402,11.24,136.7,136.63,13.9498]
[1725998160307,11.24,136.7,136.65,3.6587]
[1725998161106,11.24,136.7,136.64,3.6589]
[1725998161299,5.07942021,136.73,136.63,13.9498]
[1725998161604,11.24,136.72,136.66,3.6583]
[1725998162704,5.07942021,136.73,136.66,11.24]
[1725998162905,11.24,136.72,136.66,11.24]
[1725998163101,11.24,136.71,136.64,11.24]
[1725998163302,11.24,136.69,136.64,3.6589]
[1725998164701,11.24,136.69,136.63,17.6089]
[1725998164905,11.24,136.68,136.61,11.24]
[1725998165204,11.24,136.68,136.62,3.6595]
[1725998165705,11.24,136.68,136.63,3.6592]
[1725998166401,11.24,136.68,136.58,2.7808]
[1725998166603,11.24,136.7,136.64,11.24]
[1725998167202,11.24,136.7,136.65,3.6586]
[1725998169010,11.24,136.7,136.64,11.24]
[1725998169409,11.24,136.72,136.66,11.24]
[1725998170313,11.24,136.72,136.68,3.6578]
[1725998170510,16.31942021,136.73,136.68,3.6578]
[1725998173916,7.64223506,136.79,136.69,11.24]
[1725998174111,11.24,136.76,136.7,11.24]
[1725998174316,14.84745132,136.76,136.7,11.24]
[1725998174621,14.84745132,136.76,136.71,3.657]
[1725998175506,3.60745132,136.76,136.72,3.6568]
[1725998175705,11.24,136.77,136.72,3.6568]
[1725998176310,3.60196164,136.76,136.72,3.6568]
[1725998176510,11.24,136.77,136.72,3.6568]
[1725998177012,14.90100797,136.77,136.73,3.6566]
[1725998177214,11.24,136.77,136.73,3.6566]
[1725998177414,11.24,136.77,136.64,11.3382]
[1725998177615,11.24,136.76,136.71,3.657]
[1725998178215,11.24,136.77,136.72,3.6568]
[1725998178412,11.24,136.77,136.71,11.24]
[1725998178811,11.24,136.77,136.73,3.6566]
[1725998180018,16.2907101,136.78,136.74,3.6563]
[1725998180417,16.2907101,136.78,136.71,11.24]
[1725998180618,16.2907101,136.78,136.73,3.6564]
[1725998181022,16.2907101,136.78,136.71,11.24]
[1725998181216,5.0507101,136.78,136.64,8.7273]
[1725998181412,16.2907101,136.78,136.71,11.24]
[1725998182025,16.2907101,136.78,136.72,3.6567]
[1725998182228,16.2907101,136.78,136.71,11.24]
[1725998182418,16.2907101,136.78,136.72,3.6569]
[1725998182615,16.2907101,136.78,136.71,11.24]
[1725998183124,16.2907101,136.78,136.73,3.6564]
[1725998184723,1.348,136.78,136.7,3.66868994]
[1725998184930,1.8394,136.82,136.74,11.24]
[1725998185125,11.24,136.81,136.74,14.8962]
[1725998185831,11.24,136.81,136.74,11.24]
[1725998186330,11.24,136.81,136.74,3.6562]
[1725998186525,11.24,136.81,136.74,14.8962]
[1725998186920,1.8394,136.82,136.74,11.24]
[1725998187121,11.24,136.79,136.73,3.6566]
[1725998187327,3.71095178,136.78,136.72,14.86425927]
[1725998187527,3.71095178,136.78,136.72,18.52105927]
[1725998187727,11.24,136.79,136.71,2.6729]
[1725998187728,11.24,136.77,136.71,13.9129]
[1725998187929,14.96119394,136.77,136.71,13.9129]
[1725998188131,11.24,136.76,136.71,13.9129]
[1725998188334,12.6117,136.78,136.72,11.24]
[1725998188930,16.27985421,136.78,136.72,11.24]
[1725998189130,16.27985421,136.78,136.72,14.8968]
[1725998189935,1.3717,136.78,136.73,11.24]
[1725998190437,4.94720482,136.78,136.73,14.8964]
[1725998190736,1.3717,136.78,136.73,14.8964]
[1725998191130,4.962935,136.78,136.73,14.8964]
[1725998192131,4.962935,136.78,136.73,3.6564]
[1725998193140,17.56,136.81,136.74,3.6563]
[1725998193333,18.9065,136.81,136.74,3.6563]
[1725998194237,18.9065,136.81,136.71,21.6194]
[1725998194530,18.9065,136.81,136.73,3.6564]
[1725998195429,18.9065,136.81,136.72,3.6568]
[1725998195628,17.56,136.79,136.72,3.6568]
[1725998196232,17.56,136.79,136.71,1.3238]
[1725998196928,17.56,136.77,136.67,2.7019]
[1725998197126,1.3877,136.76,136.67,2.7019]
[1725998198833,1.3877,136.76,136.69,3.6575]
[1725998199541,1.3877,136.76,136.7,3.6573]
[1725998201640,1.3877,136.76,136.69,3.6575]
[1725998202338,1.3877,136.76,136.68,3.6579]
[1725998202544,17.56,136.75,136.64,20.3203]
[1725998202740,17.56,136.73,136.64,20.3203]
[1725998202942,17.56,136.73,136.66,3.6583]
[1725998203337,17.56,136.73,136.64,20.3203]
[1725998203645,17.56,136.73,136.65,3.6586]
[1725998204636,17.56,136.73,136.64,5.0643]
[1725998205038,17.56,136.73,136.64,1.4054]
[1725998205241,17.56,136.73,136.64,5.0642]
[1725998205641,17.56,136.73,136.64,1.4054]
[1725998205843,17.56,136.73,136.65,3.6587]
[1725998206042,17.56,136.73,136.64,1.4054]
[1725998206337,17.56,136.73,136.66,3.6582]
[1725998207050,17.56,136.73,136.64,1.4054]
[1725998207750,17.56,136.71,136.64,1.4054]
[1725998208451,1.366,136.7,136.64,3.659]
[1725998209146,3.67925909,136.69,136.64,3.659]
[1725998210038,3.67925909,136.69,136.63,1.4042]
[1725998211353,1.366,136.7,136.63,1.4042]
[1725998211851,5.07930258,136.7,136.63,1.4042]
[1725998212148,1.366,136.7,136.63,1.4042]
[1725998212446,5.06804557,136.7,136.63,1.4042]
[1725998212647,17.56,136.69,136.61,1.3286]
[1725998212842,21.24886972,136.69,136.61,1.3286]
[1725998214145,11.24,136.66,136.61,1.3286]
[1725998214948,2.6064,136.74,136.64,11.24]
[1725998215242,2.6064,136.74,136.61,1.3286]
[1725998215243,11.24,136.73,136.66,11.24]
[1725998215640,11.24,136.73,136.66,14.8983]
[1725998216353,11.24,136.71,136.66,14.8983]
[1725998216652,11.24,136.71,136.66,11.24]
[1725998217957,11.24,136.71,136.66,14.8985]
[1725998218147,17.56,136.73,136.66,3.6585]
[1725998219547,17.56,136.73,136.63,17.56]
[1725998219748,17.56,136.71,136.62,1.3822]
[1725998220757,17.56,136.71,136.63,3.6591]
[1725998220959,17.56,136.71,136.62,1.3822]
[1725998222258,17.56,136.71,136.63,3.6592]
[1725998222457,17.56,136.69,136.62,1.3822]
[1725998222853,17.56,136.69,136.61,4.9883]
[1725998223050,17.56,136.69,136.61,1.3286]
[1725998223252,17.56,136.69,136.62,3.6594]
[1725998224953,1.3781,136.68,136.61,4.9883]
[1725998225853,1.3781,136.68,136.61,1.3286]
[1725998226453,1.3781,136.68,136.61,4.9882]
[1725998228060,1.3781,136.68,136.62,3.6595]
[1725998228249,1.3781,136.68,136.59,17.56]
[1725998228449,1.3781,136.68,136.62,3.6594]
[1725998228963,1.3781,136.68,136.61,3.6597]
[1725998229662,17.56,136.67,136.6,3.66]
[1725998229859,21.14838032,136.67,136.6,3.66]
[1725998230058,21.14838032,136.67,136.58,5.03823577]
[1725998230565,21.14838032,136.67,136.61,3.6598]
[1725998235268,21.14838032,136.67,136.62,3.6595]
[1725998236065,3.58838032,136.67,136.63,3.6593]
[1725998236375,1.3781,136.68,136.58,5.03823577]
[1725998236968,1.3781,136.68,136.62,3.6594]
[1725998237666,1.3781,136.68,136.59,17.56]
[1725998237861,17.56,136.71,136.62,17.56]
[1725998238175,17.56,136.71,136.63,2.7043]
[1725998238669,17.56,136.71,136.66,3.6585]
[1725998239065,17.56,136.71,136.65,3.6587]
[1725998240067,11.24,136.7,136.65,3.6587]
[1725998240566,11.24,136.7,136.66,3.6584]
[1725998243169,1.3414,136.73,136.65,11.24]
[1725998243374,12.5814,136.73,136.67,11.24]
[1725998243776,12.5814,136.73,136.68,3.6578]
[1725998245473,3.57504509,136.74,136.68,11.24]
[1725998245668,11.24,136.77,136.7,11.24]
[1725998245874,3.61048572,136.76,136.71,3.657]
[1725998246675,11.24,136.75,136.69,3.6575]
[1725998246975,14.98733802,136.75,136.69,3.6575]
[1725998247182,14.98733802,136.75,136.68,11.24]
[1725998247381,14.98733802,136.75,136.68,13.9049]
[1725998248278,14.98733802,136.75,136.69,3.6576]
[1725998248471,11.24,136.74,136.68,13.9049]
[1725998249180,14.84942416,136.74,136.68,2.6649]
[1725998249382,11.24,136.72,136.68,2.6649]
[1725998250077,14.86332626,136.72,136.68,2.6649]
[1725998251179,11.24,136.72,136.68,2.6649]
[1725998251374,11.24,136.72,136.68,6.3228]
[1725998254480,3.57373699,136.73,136.69,3.6576]
[1725998254685,3.57373699,136.73,136.68,2.6649]
[1725998255381,11.24,136.73,136.66,11.24]